Cogmind - Beta 16.1 @@@ ROGUE MODE // 2026.04.06 @ 04:05:08 Player: KURIIRI Result: Destroyed by O0-W5E(R) with Subdweller Beam Cannon Performance ------------- Evolutions (0) 0 Regions Visited (2) 400 Robots Destroyed (32) 160 Value Destroyed (674) 674 Prototype IDs (0) 0 Alien Tech Used (0) 0 Bonus (0) 0 TOTAL SCORE: 1234 Bonus ------- None Cogmind --------- Core Integrity 0/250 Matter 292/300 Energy 125/125 System Corruption 1% Temperature Warm (169) Movement Treading (160) Location -10/Subcaves Parts ------- > --- POWER (1) -------- Light Ion Engine > --- PROPULSION (2) --- Light Treads Light Treads > --- UTILITY (2) ------ Large Storage Unit > --- WEAPON (2) ------- Subdweller Laser Subdweller Machine Gun > --- INVENTORY (15) --- Subdweller Power Source Light Treads Compact Wheel Compact Wheel Large Matter Pod (150) High-capacity Matter Pod (200) Weapon Shielding Small Laser Subdweller Laser Heavy Assault Rifle Heavy Assault Rifle Heavy Assault Rifle Battle Rifle Mace Peak State ------------ > --- POWER ------------ Light Ion Engine > --- PROPULSION ------- Light Treads Light Treads > --- UTILITY ---------- Large Storage Unit Subdweller Optics > --- WEAPON ----------- Subdweller Laser Subdweller Machine Gun > --- INVENTORY -------- Subdweller Power Source Light Treads Compact Wheel Compact Wheel Large Matter Pod High-capacity Matter Pod Weapon Shielding Small Laser Subdweller Laser Heavy Assault Rifle Heavy Assault Rifle Heavy Assault Rifle Battle Rifle Mace [Rating: 12] Favorites ----------- Power Light Ion Engine Engine Light Ion Engine Propulsion Light Treads Treads Light Treads Leg Aluminum Leg Utility Large Storage Unit Device Subdweller Optics Storage Large Storage Unit Protection Light Armor Plating Weapon Heavy Assault Rifle Energy Gun Subdweller Laser Energy Cannon Beam Cannon Ballistic Gun Heavy Assault Rifle Impact Weapon Mace Build | -11 -10 -10 ------- Run | Yrd Mat Sub Slots Evolved . | . . . Power . | . . . Propulsion . | . . . Utility . | . . . Weapon . | . . . Parts Attached 18 | 3 9 6 Power 3 | . 1 2 Engine 3 | . 1 2 Core . | . . . Reactor . | . . . Propulsion 2 | 2 . . Treads 2 | 2 . . Leg . | . . . Wheel . | . . . Hover . | . . . Flight . | . . . Utility 6 | 1 3 2 Device 2 | 1 . 1 Storage 2 | . 2 . Processor . | . . . Hackware . | . . . Protection 2 | . 1 1 Artifact . | . . . Weapon 7 | . 5 2 Energy Gun 1 | . . 1 Energy Cannon 1 | . 1 . Ballistic Gun 4 | . 3 1 Ballistic Cannon . | . . . Launcher . | . . . Special Weapon . | . . . Impact Weapon 1 | . 1 . Slashing Weapon . | . . . Piercing Weapon . | . . . Special Melee Weapon . | . . . Unidentified Prototypes . | . . . Parts Lost 5 | . 1 4 Power 2 | . . 2 Propulsion . | . . . Utility 3 | . 1 2 Weapon . | . . . Highest Loss Streak 1 | . 1 1 To Critical Strikes . | . . . Average Backups 9 | 5 8 11 Power 1 | 1 1 . Propulsion 2 | 3 2 3 Utility 1 | . . 2 Weapon 4 | 1 3 5 Tool/Special . | . . . Unused Backups 12 | . 4 8 Power 1 | . . 1 Propulsion 2 | . . 2 Utility 4 | . 2 2 Weapon 5 | . 2 3 Tool/Special . | . . . Average Slot Usage (%) 96 | . 98 92 Engine 11 | . 14 7 Treads 28 | . 28 28 Device 5 | . 1 11 Storage 14 | . 14 14 Protection 7 | . 11 1 Energy Gun 2 | . 2 4 Energy Cannon 5 | . 2 9 Ballistic Gun 15 | . 16 14 Impact Weapon 4 | . 7 . Peak Build Rating 12 | 9 10 12 Average Rating 9 | 7 9 9 On Entrance 8 | 6 9 9 Avg Prop Armor Cover (%) . | . . . Naked Turns . | . . . Heaviest Build 33 | 13 32 33 Greatest Support 40 | 40 40 40 Greatest Overweight (x) . | . . . Average Overweight (x) . | . . . Largest Inventory Capacity 15 | 8 15 15 Average Capacity 12 | 8 11 15 Most Carried 14 | 6 12 14 Average Carried 9 | 5 8 11 Final Capacity 15 | 8 15 15 Final Carried 14 | 4 12 14 Class Distribution -------------------- 100% | Mutant Dominant Class ---------------- Mutant | -10/Materials Mutant | -10/Subcaves Resources | -11 -10 -10 ----------- Run | Yrd Mat Sub Matter Collected 985 | 192 473 320 Remotely . | . . . Salvage Created 997 | 102 624 271 Parts 52 | 6 33 13 Haulers Intercepted 1 | . 1 . Recyclers Shooed 1 | . 1 . Parts Field Recycled . | . . . Retrieved Matter . | . . . Parts Self-Destructed 7 | . . 7 Prevented . | . . . Parts Restored . | . . . Kills | -11 -10 -10 ------- Run | Yrd Mat Sub Combat Hostiles Destroyed 19 | . 13 6 Guns 12 | . 9 3 Cannons 2 | . . 2 AOE 1 | . 1 . Classes Destroyed 10 | 2 7 1 Worker 3 | . 3 . Builder 2 | . 2 . Tunneler 2 | 1 1 . Hauler 1 | . 1 . Recycler 1 | 1 . . Operator 1 | . 1 . Watcher 3 | . 3 . Swarmer 5 | . 5 . Grunt 8 | . 8 . Subdweller 6 | . . 6 Best Kill Streak 10 | 2 10 2 Combat Bots Only 8 | . 8 2 Max Kills in Single Turn 2 | 1 2 1 Gunslinging . | . . . Exploded 1 | . 1 . Melee . | . . . Uniques/NPCs Destroyed . | . . . Combat | -11 -10 -10 -------- Run | Yrd Mat Sub Hostile Shots Fired 95 | . 59 36 Missed 28 | . 18 10 Hits 67 | . 41 26 Projectile 67 | . 41 26 Critical Strikes 2 | . 1 1 Damage Taken 1112 | . 430 682 Core 250 | . 58 192 Absorbed by Shields . | . . . Core Remaining (%) 100 | 100 . . Volleys Fired 70 | 5 40 25 Largest 2 | 2 2 2 Hottest 90 | 60 60 90 Shots Fired 138 | 10 78 50 Gun 122 | 10 78 34 Cannon 16 | . . 16 Launcher . | . . . Special . | . . . Kinetic 81 | 5 51 25 Thermal 25 | . . 25 Explosive . | . . . Electromagnetic 32 | 5 27 . Robot Hit Streak 16 | 2 6 16 Robot Miss Streak 5 | 2 5 2 Penetration Max . | . . . Secondary Targets 2 | . 2 . Max Gunslinging Chain 1 | . 1 . Shots Hit Robots 101 | 5 54 42 Core Hits 36 | 3 23 10 Critical Kills 1 | . . 1 Critical Parts Destroyed 4 | . 4 . Critical Strikes 6 | 1 4 1 Meltdown 1 | . . 1 Corrupt 1 | 1 . . Smash 4 | . 4 . Melee Attacks 14 | . 14 . Impact 14 | . 14 . Slashing . | . . . Piercing . | . . . Sneak Attacks 6 | . 6 . Combat Hostiles . | . . . Follow-up Attacks . | . . . Damage Inflicted 2004 | 65 1212 727 Guns 1197 | 65 615 517 Cannons 210 | . . 210 Explosions 73 | . 73 . Melee 524 | . 524 . Ramming . | . . . Kinetic 770 | 24 395 351 Thermal 449 | . 73 376 Explosive . | . . . Electromagnetic 261 | 41 220 . Impact 524 | . 524 . Slashing . | . . . Piercing . | . . . Highest Corruption 1 | . 1 1 Average Corruption 1 | . 1 1 Corruption Purged . | . . . Corruption Blocked . | . . . Effects 12 | . 5 7 Message Errors 2 | . 1 1 Matter Fused 1 | . . 1 Heat Flow Errors 3 | . 1 2 Data Loss (minor) 4 | . 3 1 Misfires 1 | . . 1 Weapon Failures 1 | . . 1 Overload Shots . | . . . Overflow Damage 329 | . 329 . Projectiles . | . . . Explosions . | . . . Melee 329 | . 329 . Knockbacks 2 | . 2 . Impact 2 | . 2 . Kinetic . | . . . Secondary . | . . . Self-Inflicted Damage . | . . . Shots . | . . . Rammed . | . . . Targets Rammed . | . . . Kicked . | . . . Crushed . | . . . Highest Temperature 249 | . 249 191 Average Temperature 62 | . 56 115 Received Heat Transfer 279 | . 120 159 Siege Activations . | . . . Martial Activations . | . . . Shielding Activations . | . . . Robots Disrupted . | . . . Combat Hostiles . | . . . Robots Corrupted 7 | . 7 . Combat Hostiles 3 | . 3 . Parts Fried 14 | . 14 . Impact Corruptions 11 | . 11 . Robots Melted 1 | . . 1 Combat Hostiles 1 | . . 1 Parts Melted 2 | . . 2 Heat Transferred 744 | . 100 644 Parts Sabotaged . | . . . Parts Stolen . | . . . Parts Stripped . | . . . Power Chain Reactions 1 | . 1 . Alert | -11 -10 -10 ------- Run | Yrd Mat Sub Maximum Alert Level . | . . . Low Security (%) 100 | 100 100 . Level 1 . | . . . Level 2 . | . . . Level 3 . | . . . Level 4 . | . . . Level 5 . | . . . High Security . | . . . Max Security . | . . . Peak Influence 180 | 10 180 . Initial . | . . . Average 54 | 3 55 . Influence Increases 514 | 10 504 . Destroy 0b10 Robot/C 260 | . 260 . Destroy 0b10 Robot/NC 65 | 10 55 . Destroy Leader 58 | . 58 . Successful Hack 20 | . 20 . Select Force Hacks 60 | . 60 . Destroy Structure 6 | . 6 . Partial Spotted 15 | . 15 . Lose Combat Pursuer 30 | . 30 . Influence Decreases 514 | 10 470 34 Entered New Map 17 | . . 17 Time Decay 487 | 10 460 17 Lost Part 10 | . 10 . Squads Dispatched 3 | . 3 . Investigation 2 | . 2 . Extermination . | . . . Reinforcement 1 | . 1 . Assault . | . . . Garrison . | . . . Intercept . | . . . Searches Triggered . | . . . Construction Impeded . | . . . Haulers Reinforced . | . . . Active Scanning Responses . | . . . Cargo Convoy Interrupts . | . . . Stealth | -11 -10 -10 --------- Run | Yrd Mat Sub Distress Signals . | . . . Communications Jammed . | . . . Distress Signals . | . . . Times Spotted 29 | . 21 8 Peak Tracking Total 3 | . 3 2 Tactical Retreats 2 | . 2 . Traps | -11 -10 -10 ------- Run | Yrd Mat Sub Traps Triggered 3 | . 2 1 Indirectly . | . . . Trap Hack Attempts . | . . . Triggered . | . . . Disarmed . | . . . Reprogrammed . | . . . Reused . | . . . Traps Extracted . | . . . Installed . | . . . Triggered . | . . . Machines | -11 -10 -10 ---------- Run | Yrd Mat Sub Machines Disabled . | . . . Max in Single Turn . | . . . Machines Repaired . | . . . Machines Dismantled . | . . . Machines Sabotaged . | . . . Overloaded Fab Kills . | . . . Hacking | -11 -10 -10 --------- Run | Yrd Mat Sub Machines Accessed 8 | . 8 . Terminals 6 | . 6 . Fabricators . | . . . Repair Stations . | . . . Recycling Units 2 | . 2 . Scanalyzers . | . . . Garrison Access . | . . . Total Hacks 23 | . 23 . Successful 11 | . 11 . Failed 12 | . 12 . Catastrophic 1 | . 1 . Database Lockouts . | . . . Manual 21 | . 21 . Terminals 20 | . 20 . Fabricators . | . . . Repair Stations . | . . . Recycling Units 3 | . 3 . Scanalyzers . | . . . Garrison Access . | . . . Terminal Hacks 1 | . 1 . Robot Analysis 1 | . 1 . Fabricator Hacks . | . . . Repair Station Hacks . | . . . Recycling Unit Hacks . | . . . Scanalyzer . | . . . Garrison Access Hacks . | . . . Unauthorized Hacks 10 | . 10 . Terminals 8 | . 8 . Botnet 2 | . 2 . Operators 1 | . 1 . Skim 5 | . 5 . Fabricators . | . . . Repair Stations . | . . . Recycling Units 2 | . 2 . Tunnel 2 | . 2 . Scanalyzers . | . . . Garrison Access . | . . . Data Cores Recovered . | . . . Used . | . . . Hacking Detections 7 | . 7 . Full Trace Events . | . . . Feedback Events . | . . . Feedback Blocked . | . . . Robot Schematics Acquired . | . . . Robots Built . | . . . Authchips . | . . . Time . | . . . Total Robot Build Rating . | . . . Part Schematics Acquired . | . . . Parts Built . | . . . Authchips . | . . . Time . | . . . Total Part Build Rating . | . . . Part Studies Acquired . | . . . Parts Repaired . | . . . Time . | . . . Parts Recycled . | . . . Recycled Matter . | . . . Retrieved Matter . | . . . Retrieved Components . | . . . Parts Scanalyzed . | . . . Part Schematics Acquired . | . . . Parts Damaged . | . . . Bothacking | -11 -10 -10 ------------ Run | Yrd Mat Sub Used RIF Installer . | . . . Robots Hacked . | . . . Non-combat . | . . . Combat . | . . . Robot Hacks Applied . | . . . Relay Couplers Released . | . . . Fabnet Peak Effective % . | . . . Robots Rewired . | . . . Allies Hacked . | . . . Hacks Repelled . | . . . Allies | -11 -10 -10 -------- Run | Yrd Mat Sub Total Allies . | . . . Largest Group . | . . . Highest-Rated Group . | . . . Highest-Rated Ally . | . . . Total Orders . | . . . Ally Attacks . | . . . Total Damage . | . . . Kills . | . . . Allies Corrupted . | . . . Allies Melted . | . . . Intel | -11 -10 -10 ------- Run | Yrd Mat Sub Active Infowar (turns) 1024 | 15 139 870 Optics 870 | . . 870 Terrain 154 | 15 139 . Robot Analysis Total 1 | . 1 . Derelict Logs Recovered . | . . . Drone Launches . | . . . Drone Recoveries . | . . . Exploration | -11 -10 -10 ------------- Run | Yrd Mat Sub Turns Passed 2646 | 33 1571 1042 Spaces Moved 1003 | 9 806 188 Core . | . . . Treads 995 | 1 806 188 Legs 8 | 8 . . Wheels . | . . . Hover . | . . . Flight . | . . . Fastest Speed 120 | 120 160 160 Average Speed 159 | 124 160 160 Slowest Speed 160 | 160 160 160 Overloaded Moves . | . . . Propulsion Burnouts . | . . . Robots Hopped . | . . . Potential Cave-ins . | . . . Cave-ins Triggered . | . . . Exploration Rate (%) 37 | 2 95 16 Regions Visited 2 Branch Regions 1 Pre-discovered Areas 2 | . 2 . Known Exits Taken 1 | . 1 . Unknown Exits Taken 1 | 1 . . Scrap Searched 4 | . . 4 Spaces Dug 3 | . 3 . Terrain Destroyed 6 | . 6 . Melee 3 | . 3 . Projectile . | . . . AOE 3 | . 3 . Terrain Rammed . | . . . Walls Destroyed . | . . . Machines Disabled . | . . . Actions | -11 -10 -10 --------- Run | Yrd Mat Sub Total 1879 | 21 982 876 Wait 750 | 3 96 651 Move 1001 | 8 805 188 Hop . | . . . Pick Up 12 | . 8 4 Fast Attach 6 | 1 2 3 Attach 4 | 2 . 2 Detach . | . . . Swap 13 | . 12 1 Drop 9 | 2 5 2 Fire 70 | 5 40 25 Melee 14 | . 14 . Ram . | . . . Kick . | . . . Crush . | . . . Escape Stasis . | . . . Rewire . | . . . Trap . | . . . Miscellaneous . | . . . Route ------- -11/Scrapyard -10/Materials (discovered 6 exits: [*Mat x3] / [*Min x2] / *Sub) -10/Subcaves History --------- Turn | Location | Event 17 | -11/Scrapyard | Discovered new exit (range 3) 34 | -11/Scrapyard | Entered Materials 220 | -10/Materials | Discovered new exit (range 16) 234 | -10/Materials | Destroyed 8 combat bots 305 | -10/Materials | Build established: Mutant 781 | -10/Materials | Discovered new exit (range 12) 869 | -10/Materials | Discovered new exit (range 16) 977 | -10/Materials | Discovered new exit (range 11) 1127 | -10/Materials | Discovered new exit (range 5) 1261 | -10/Materials | Learned location of 1 exit from Recycling 1300 | -10/Materials | Identified exit to Subcaves 1331 | -10/Materials | Learned Storage emergency access door positions 1351 | -10/Materials | Learned 2 Storage zone layouts 1364 | -10/Materials | Loaded intel: 16 trap records 1374 | -10/Materials | Learned 2 Storage zone layouts 1396 | -10/Materials | Learned 4 Recycling zone layouts 1605 | -10/Materials | Entered Subcaves 1666 | -10/Subcaves | Core integrity fell below 50% 2628 | -10/Subcaves | Ambushed by Subdwellers from Twisted Machinery 2629 | -10/Subcaves | Core integrity fell below 20% 2647 | -10/Subcaves | Destroyed by O0-W5E(R) with Subdweller Beam Cannon Last Messages --------------- 02546_ Found Mak. Light Armor Plating. 02546_ Found 48 Matter. 02547_ Acquired 7 matter. 02547_ Searching scrap... 02547_ Found Sub. Power Source. 02547_ Found Ripper. 02547_ Found 34 Matter. 02554_ Searching scrap... 02554_ Found Piercing Trap. 02554_ Found 42 Matter. 02557_ Acquired Battle Rifle. 02563_ Acquired Sub. Power Source. 02565_ Subatomizers dissect the Beam Cannon. 02608_ System corrupted: Matter fused (-5). 02628_ O0-W5E(R) emerges from the Twisted Machinery. 02632_ System corrupted: Sub. Machine Gun jammed. 02641_ Sub. Optics destroyed. 02642_ System corrupted: Heat flow error (+201). Map ----- +----------------------------------------------------+ | ??????????????# #?????????????????????? | | ??????????????# ##?????????????????????? | | ??????????????## #??????????????????????? | | ??????????????# #??????????????????????? | | ??????????????## #??????????????????????? | | ??????????????## ##???????????#?????????? | | ??????????????# ####??????? ##????????? | | ??????????????# ## ##????? #????????? | | ??????????????## ####? #????????? | | ??????????????# ## ###??????? | | ??????????????# # #??????? | | ??????????????# ### ##????? | | ??????????????# ## | | ??????????????# | | ??????????????# | | ??????????????## ### ## #### | | ???????????????# ### #??####????? | | ???????????????#; ## ###????????????? | | ???????????????## #????????????? | | ???????????????# #????????????? | | ???????????????# ##???????????? | | ???????????????# #???????????? | | ???????????????# ## #???????????? | | ???????????????## ###? #??????????? | | ??????????????### #??? ????????? | | ??????????????#; @ ##???# ##???????? | | ??????????????## #?????## ##????????? | | ???????????????## #???????###?????????? | | ????????????????# #???????????????????? | | ????????????????## #???????????????????? | | ?????????????????# R #???????????????????? | | ?????????????????# " ???????????????????? | | ????????????????? "" ??????????????????? | | ?????????????????#R""" ?????????????????? | | ?????????????????" "" ?????????????????? | | ?????????????????" " ????????????????? | | ?????????????????" """" #???????????????? | | ?????????????????" "?""" ???????????????? | | ?????????????????" ##???? "??????????????? | | ?????????????????" #??????#??????????????? | | ??????????????????#??????????????????????? | | ?????????????????????????????????????????? | | ?????????????????????????????????????????? | | ?????????????????????????????????????????? | | ?????????????????????????????????????????? | | ?????????????????????????????????????????? | | ?????????????????????????????????????????? | | ?????????????????????????????????????????? | | ?????????????????????????????????????????? | | ?????????????????????????????????????????? | +----------------------------------------------------+ Best States ------------- Heat Dissipation 25 Energy Generation 10 Energy Capacity 125 Matter Stores 300 Matter Capacity 300 Sight Range 21 Terrain Scan Range 16 Terrain Scan Density 10 Armor Coverage 150 Weapon Shielding 33 Evasion (%) 50 Recoil Reduction 2 Item Schematics ----------------- None Robot Schematics ------------------ None Fabricated ------------ Nothing Repaired ---------- Nothing Studied --------- None Alien Tech Used ----------------- None Achievements -------------- None Challenges ------------ None Game ------ Seed HeatArcsightEdition Manual? 0 Play Time 00:15:16 Cumulative 390.8 hours Start 2026.04.06 @ 03:52:06 End 2026.04.06 @ 04:05:08 Sessions 1 Manual Loads 0 Difficulty Rogue Special Mode None Game No. 335 Rogue 299 Adventurer 36 Explorer 0 Win Type - Total 5 Types 2/0/0/1/0/0/0/2/0/0 Lore% 74 Gallery% 66 Achievement% 55 Wizard Run 0 Options --------- Layout 1 ASCII 0 Keyboard 0 Movement Numpad Keybinds 0 Fullscreen 1 Font 48/Smallcaps Map View 50x35 Zoom Use 0% Tactical HUD 1 Map Filters NONE Filters NONE Steam 1 RUN: cd84c0ae-4053-42ae-ba8c-ff2060e6e2eb